Cogmind - Beta 14 @@@ ROGUE MODE // 2024.10.09 @ 18:22:24 Player: Cmdr.Laserstrahl Result: Destroyed by D-53 Grenadier with Mini Grenade Launcher Performance ------------- Evolutions (0) 0 Regions Visited (2) 400 Robots Destroyed (9) 45 Value Destroyed (209) 209 Prototype IDs (0) 0 Alien Tech Used (0) 0 Bonus (0) 0 TOTAL SCORE: 654 Bonus ------- None Cogmind --------- Core Integrity 0/250 Matter 285/300 Energy 63/100 System Corruption 0% Temperature Cool (0) Movement Rolling (130) Ox2 Location -10/Mines Parts ------- > --- POWER (1) -------- (None) > --- PROPULSION (2) --- Compact Wheel > --- UTILITY (2) ------ High-capacity Storage Unit Structural Scanner > --- WEAPON (2) ------- (None) > --- INVENTORY (20) --- Ion Engine Aluminum Leg Aluminum Leg Wheel Compact Wheel Improved Heat Sink Medium Matter Pod (23) Large Matter Pod (0) Structural Scanner Signal Interpreter Seismic Detector Light Assault Rifle Mining Laser Peak State ------------ > --- POWER ------------ Light Ion Engine > --- PROPULSION ------- Wheel Compact Wheel > --- UTILITY ---------- Small Storage Unit Improved Terrain Scanner > --- WEAPON ----------- Light Assault Rifle Light Assault Rifle > --- INVENTORY -------- Ion Engine Aluminum Leg Aluminum Leg Compact Wheel Compact Wheel Small Laser [Rating: 9] Favorites ----------- Power Ion Engine Engine Ion Engine Propulsion Wheel Wheel Wheel Utility Structural Scanner Device Structural Scanner Storage Small Storage Unit Weapon Light Assault Rifle Energy Gun Small Laser Ballistic Gun Light Assault Rifle Build | -11 -10 -10 ------- Run | Yrd Mat Min Slots Evolved . | . . . Power . | . . . Propulsion . | . . . Utility . | . . . Weapon . | . . . Parts Attached 20 | 7 11 2 Power 2 | 1 1 . Engine 2 | 1 1 . Core . | . . . Reactor . | . . . Propulsion 5 | 2 2 1 Treads . | . . . Leg . | . . . Wheel 5 | 2 2 1 Hover . | . . . Flight . | . . . Utility 4 | 2 2 . Device 2 | 1 1 . Storage 2 | 1 1 . Processor . | . . . Hackware . | . . . Protection . | . . . Artifact . | . . . Weapon 9 | 2 6 1 Energy Gun 6 | . 5 1 Energy Cannon . | . . . Ballistic Gun 3 | 2 1 . Ballistic Cannon . | . . . Launcher . | . . . Special Weapon . | . . . Impact Weapon . | . . . Slashing Weapon . | . . . Piercing Weapon . | . . . Special Melee Weapon . | . . . Unidentified Prototypes . | . . . Parts Lost 10 | . 4 6 Power 2 | . 1 1 Propulsion 3 | . 1 2 Utility . | . . . Weapon 5 | . 2 3 Highest Loss Streak 6 | . 4 6 To Critical Strikes . | . . . Average Slot Usage (%) 96 | . 96 95 Engine 12 | . 13 12 Wheel 26 | . 26 28 Device 13 | . 13 14 Storage 14 | . 14 14 Energy Gun 15 | . 16 12 Ballistic Gun 10 | . 10 12 Peak Build Rating 9 | 9 9 8 Average Rating 7 | 5 7 7 On Entrance 5 | . 9 8 Naked Turns . | . . . Heaviest Build 48 | 11 48 48 Greatest Support 26 | 26 26 26 Greatest Overweight (x) 2 | . 1 2 Average Overweight (x) . | . . 1 Largest Inventory Capacity 20 | 8 20 20 Average Capacity 12 | 7 11 20 Most Carried 15 | 7 11 15 Average Carried 8 | 4 8 14 Final Capacity 20 | 8 20 20 Final Carried 13 | 7 11 13 Class Distribution -------------------- 100% | Mutant Dominant Class ---------------- Mutant | -10/Materials Mutant | -10/Mines Resources | -11 -10 -10 ----------- Run | Yrd Mat Min Matter Collected 378 | 276 102 . Remotely . | . . . Salvage Created 409 | 103 306 . Parts 18 | 6 12 . Haulers Intercepted 1 | . 1 . Recyclers Shooed 1 | . 1 . Parts Field Recycled . | . . . Retrieved Matter . | . . . Parts Self-Destructed . | . . . Prevented . | . . . Kills | -11 -10 -10 ------- Run | Yrd Mat Min Combat Hostiles Destroyed 4 | . 4 . Guns 2 | . 2 . AOE 2 | . 2 . Classes Destroyed 5 | 2 3 . Tunneler 1 | 1 . . Hauler 1 | . 1 . Recycler 2 | 1 1 . Watcher 1 | . 1 . Grunt 4 | . 4 . Best Kill Streak 6 | 1 6 . Combat Bots Only 4 | . 4 . Max Kills in Single Turn 2 | 1 2 . Gunslinging . | . . . Exploded 2 | . 2 . Melee . | . . . Uniques/NPCs Destroyed . | . . . Combat | -11 -10 -10 -------- Run | Yrd Mat Min Hostile Shots Fired 40 | . 27 13 Missed 7 | . 7 . Damage Taken 890 | . 349 541 Core 252 | . 52 200 Absorbed by Shields . | . . . Core Remaining (%) 100 | 100 . . Volleys Fired 26 | 3 20 3 Largest 2 | 2 2 2 Hottest 105 | 40 105 60 Shots Fired 50 | 6 39 5 Gun 50 | 6 39 5 Cannon . | . . . Launcher . | . . . Special . | . . . Kinetic 20 | 6 12 2 Thermal 19 | . 17 2 Explosive . | . . . Electromagnetic 11 | . 10 1 Robot Hit Streak 7 | 6 7 6 Robot Miss Streak 2 | . 2 2 Penetration Max . | . . . Secondary Targets 1 | . 1 . Max Gunslinging Chain 1 | . 1 . Shots Hit Robots 35 | 6 26 3 Core Hits 19 | 5 13 1 Critical Kills . | . . . Critical Parts Destroyed . | . . . Critical Strikes . | . . . Melee Attacks . | . . . Impact . | . . . Slashing . | . . . Piercing . | . . . Sneak Attacks . | . . . Combat Hostiles . | . . . Follow-up Attacks . | . . . Damage Inflicted 592 | 45 515 32 Guns 397 | 45 320 32 Cannons . | . . . Explosions 195 | . 195 . Melee . | . . . Ramming . | . . . Kinetic 124 | 45 70 9 Thermal 383 | . 372 11 Explosive . | . . . Electromagnetic 85 | . 73 12 Impact . | . . . Slashing . | . . . Piercing . | . . . Highest Corruption . | . . . Average Corruption . | . . . Corruption Purged . | . . . Corruption Blocked . | . . . Overload Shots . | . . . Overflow Damage 48 | . 48 . Projectiles . | . . . Explosions 48 | . 48 . Melee . | . . . Knockbacks . | . . . Impact . | . . . Kinetic . | . . . Secondary . | . . . Self-Inflicted Damage 78 | . 78 . Shots 1 | . 1 . Rammed . | . . . Targets Rammed . | . . . Kicked . | . . . Crushed . | . . . Highest Temperature 265 | . 265 35 Average Temperature 87 | . 91 21 Received Heat Transfer 159 | . 159 . Siege Activations . | . . . Robots Corrupted . | . . . Combat Hostiles . | . . . Parts Fried . | . . . Impact Corruptions . | . . . Robots Melted . | . . . Combat Hostiles . | . . . Parts Melted 3 | . 3 . Heat Transferred 695 | . 670 25 Parts Sabotaged . | . . . Parts Stolen . | . . . Parts Stripped . | . . . Power Chain Reactions . | . . . Alert | -11 -10 -10 ------- Run | Yrd Mat Min Peak Influence 207 | 10 207 95 Initial 80 | . 6 80 Average 103 | 4 134 79 Maximum Alert Level 1 | . 1 . Low Security (%) 96 | 100 95 100 Level 1 3 | . 4 . Level 2 . | . . . Level 3 . | . . . Level 4 . | . . . Level 5 . | . . . High Security . | . . . Max Security . | . . . Squads Dispatched . | . . . Investigation . | . . . Extermination . | . . . Reinforcement . | . . . Assault . | . . . Garrison . | . . . Intercept . | . . . Searches Triggered . | . . . Construction Impeded . | . . . Haulers Reinforced . | . . . Active Scanning Responses . | . . . Cargo Convoy Interrupts . | . . . Stealth | -11 -10 -10 --------- Run | Yrd Mat Min Distress Signals 2 | . 2 . Communications Jammed . | . . . Distress Signals . | . . . Times Spotted 12 | . 9 3 Peak Tracking Total 6 | . 6 2 Tactical Retreats 2 | . 1 1 Traps | -11 -10 -10 ------- Run | Yrd Mat Min Traps Triggered . | . . . Indirectly . | . . . Trap Hack Attempts . | . . . Triggered . | . . . Disarmed . | . . . Reprogrammed . | . . . Reused . | . . . Traps Extracted . | . . . Installed . | . . . Triggered . | . . . Machines | -11 -10 -10 ---------- Run | Yrd Mat Min Machines Disabled 1 | . 1 . Max in Single Turn 1 | . 1 . Machines Repaired . | . . . Machines Dismantled . | . . . Machines Sabotaged . | . . . Overloaded Fab Kills . | . . . Hacking | -11 -10 -10 --------- Run | Yrd Mat Min Machines Accessed . | . . . Terminals . | . . . Fabricators . | . . . Repair Stations . | . . . Recycling Units . | . . . Scanalyzers . | . . . Garrison Access . | . . . Total Hacks . | . . . Successful . | . . . Failed . | . . . Catastrophic . | . . . Database Lockouts . | . . . Manual . | . . . Terminals . | . . . Fabricators . | . . . Repair Stations . | . . . Recycling Units . | . . . Scanalyzers . | . . . Garrison Access . | . . . Terminal Hacks . | . . . Fabricator Hacks . | . . . Repair Station Hacks . | . . . Recycling Unit Hacks . | . . . Scanalyzer . | . . . Garrison Access Hacks . | . . . Unauthorized Hacks . | . . . Terminals . | . . . Fabricators . | . . . Repair Stations . | . . . Recycling Units . | . . . Scanalyzers . | . . . Garrison Access . | . . . Data Cores Recovered . | . . . Used . | . . . Hacking Detections . | . . . Full Trace Events . | . . . Feedback Events . | . . . Feedback Blocked . | . . . Robot Schematics Acquired . | . . . Robots Built . | . . . Authchips . | . . . Time . | . . . Total Robot Build Rating . | . . . Part Schematics Acquired . | . . . Parts Built . | . . . Authchips . | . . . Time . | . . . Total Part Build Rating . | . . . Parts Repaired . | . . . Time . | . . . Parts Recycled . | . . . Recycled Matter . | . . . Retrieved Matter . | . . . Retrieved Components . | . . . Parts Scanalyzed . | . . . Part Schematics Acquired . | . . . Parts Damaged . | . . . Bothacking | -11 -10 -10 ------------ Run | Yrd Mat Min Used RIF Installer . | . . . Robots Hacked . | . . . Non-combat . | . . . Combat . | . . . Robot Hacks Applied . | . . . Relay Couplers Released . | . . . Fabnet Peak Effective % . | . . . Robots Rewired . | . . . Allies Hacked . | . . . Hacks Repelled . | . . . Allies | -11 -10 -10 -------- Run | Yrd Mat Min Total Allies . | . . . Largest Group . | . . . Highest-Rated Group . | . . . Highest-Rated Ally . | . . . Total Orders . | . . . Ally Attacks . | . . . Total Damage . | . . . Kills . | . . . Allies Corrupted . | . . . Allies Melted . | . . . Intel | -11 -10 -10 ------- Run | Yrd Mat Min Robot Analysis Total . | . . . Derelict Logs Recovered 1 | . . 1 Drone Launches . | . . . Drone Recoveries . | . . . Exploration | -11 -10 -10 ------------- Run | Yrd Mat Min Turns Passed 476 | 72 302 102 Spaces Moved 344 | 52 224 68 Core 9 | 9 . . Treads . | . . . Legs . | . . . Wheels 335 | 43 224 68 Hover . | . . . Flight . | . . . Fastest Speed 50 | 50 80 105 Average Speed 93 | 83 92 105 Slowest Speed 130 | 90 105 130 Overloaded Moves . | . . . Propulsion Burnouts . | . . . Robots Hopped . | . . . Cave-ins Triggered . | . . . Exploration Rate (%) 21 | 4 38 22 Regions Visited 2 Branch Regions 1 Pre-discovered Areas . | . . . Known Exits Taken . | . . . Unknown Exits Taken 2 | 1 1 . Scrap Searched . | . . . Spaces Dug . | . . . Terrain Destroyed 32 | . 32 . Melee . | . . . Projectile . | . . . AOE 32 | . 32 . Terrain Rammed . | . . . Walls Destroyed . | . . . Machines Disabled . | . . . Actions | -11 -10 -10 --------- Run | Yrd Mat Min Total 450 | 75 281 94 Wait 31 | 1 13 17 Move 342 | 51 223 68 Hop . | . . . Pick Up 26 | 13 9 4 Fast Attach 4 | 1 3 . Attach 12 | 6 4 2 Detach . | . . . Swap 4 | . 4 . Drop 5 | . 5 . Fire 26 | 3 20 3 Melee . | . . . Ram . | . . . Kick . | . . . Crush . | . . . Escape Stasis . | . . . Rewire . | . . . Trap . | . . . Miscellaneous . | . . . Route ------- -11/Scrapyard -10/Materials -10/Mines History --------- Turn | Location | Event 30 | -11/Scrapyard | Discovered new exit (range 16) 73 | -11/Scrapyard | Entered Materials 125 | -10/Materials | Discovered new exit (range 7) 216 | -10/Materials | Lost 4 parts (1p1n2w) 309 | -10/Materials | Build established: Mutant 375 | -10/Materials | Entered Mines 401 | -10/Mines | Assembled infested the area 429 | -10/Mines | Learned Materials emergency access door positions 473 | -10/Mines | Core integrity fell below 50% 476 | -10/Mines | Core integrity fell below 20% 477 | -10/Mines | Destroyed by D-53 Grenadier with Mini Grenade Launcher Last Messages --------------- 00428_ C-30 ARC bursts open, deploying its payload. 00428_ D-53 Grenadier unfolds itself. 00429_ Acquired derelict log, extracted data. Data stored: Materials emergency access points. 00438_ T-07 Excavator is excavating. 00460_ The unstable cave ceiling collapses. 00463_ T-07 Excavator is excavating. 00465_ Ion Engine destroyed. 00467_ Lgt. Assault Rifle destroyed. 00467_ T-07 Excavator is excavating. 00468_ Sml. Laser destroyed. 00471_ The unstable cave ceiling collapses. 00471_ T-07 Excavator is excavating. 00472_ Wheel destroyed. 00472_ Com. Wheel destroyed. 00474_ The unstable cave ceiling collapses. 00474_ EM Pulse Gun destroyed. 00475_ The unstable cave ceiling collapses. 00476_ T-07 Excavator is excavating. Map ----- +----------------------------------------------------+ | ?????????????????????????????????????????????????? | | ?????????????????????????????????????????? ??##### | | ????????????????????????????????????????? ####### | | ????????????????????????????????????????? #### | | ????????????????????????????????????????? ## | | ????????????????????????????????????????? ## ## | | ?????????????????????????????????????????## ## ## | | ????????????????????????????????????????### ## ## | | ???????????????????????????????????????#### # ## | | ???????????????????????????????????????### # | | ???????????????????????????????????????## # | | ???????????????????????????????????###### # | | ??????????????????????????????????######## # | | ?????????????????????????????????#### ##### ## | | ????????????????????????????????#### #### ## | | ???????????????????????????????#### #### | | ???????????????????????????????### #### ### | | ???????????????????????? ######## ### #### | | ???????????????????????? ######## % ####? | | ????????????????????????## ## ?? | | ????????????????????###### """" ### ###??? | | ???????????????????####### ### """" ### ####??? | | ??????????????????#### # ### """" ## ###???? | | ??????????????????### ## # ##????? | | ??????????????????## ## # ##????? | | ??????????????????## @d # ##????? | | ??????????????????## d ## # ######????? | | ??????????????????## ### ######????? | | ??????????????????### ## ## #????????? | | ??????????????????### # ### ?????????? | | ???????????????????## ##### ????????? | | ???????????????????## ##?## ????????? | | ???????????????????## # ##?### ????????? | | ???????????????????### ###?#### ?????????? | | ???????????????????#### ####???###???????????? | | ????????????????????## #####??????????????????? | | ????????????????????## t ####???????????????????? | | ????????????????????########?????????????????????? | | ?????????????????????#######?????????????????????? | | ?????????????????????????????????????????????????? | | ?????????????????????????????????????????????????? | | ?????????????????????????????????????????????????? | | ?????????????????????????????????????????????????? | | ?????????????????????????????????????????????????? | | ?????????????????????????????????????????????????? | | ?????????????????????????????????????????????????? | | ?????????????????????????????????????????????????? | | ?????????????????????????????????????????????????? | | ?????????????????????????????????????????????????? | | ?????????????????????????????????????????????????? | +----------------------------------------------------+ Best States ------------- Heat Dissipation 25 Energy Generation 10 Energy Capacity 250 Matter Stores 300 Matter Capacity 300 Sight Range 16 Terrain Scan Range 16 Terrain Scan Density 10 Evasion (%) 50 Item Schematics ----------------- None Robot Schematics ------------------ None Fabricated ------------ Nothing Alien Tech Used ----------------- None Achievements -------------- None Challenges ------------ None Game ------ Seed DisruptionRelayBeamcaster Manual? 0 Play Time 00:11:16 Cumulative 298.8 hours Start 2024.10.09 @ 18:12:57 End 2024.10.09 @ 18:22:24 Sessions 1 Manual Loads 0 Difficulty Rogue Special Mode None Game No. 128 Rogue 125 Adventurer 3 Explorer 0 Win Type - Total 0 Types 0/0/0/0/0/0/0/0/0 Lore% 23 Gallery% 51 Achievement% 37 Wizard Run 0 Options --------- Layout 2 ASCII 0 Keyboard 0 Movement Mouse Keybinds 0 Fullscreen 1 Font 24/Smallcaps Map View 50x44 Zoom Use 0% Tactical HUD 1 Map Filters NONE Filters NONE Steam 1 RUN: fd110e8b-b99f-4b1b-93c6-7d78d9dd887a